Cogmind - Beta 14 @@@ ROGUE MODE // 2024.08.07 @ 17:33:10 Player: Vexic Result: Self-destructed Performance ------------- Evolutions (1) 500 Regions Visited (2) 400 Robots Destroyed (70) 350 Value Destroyed (1965) 1965 Prototype IDs (3) 60 Alien Tech Used (0) 0 Bonus (217) 217 TOTAL SCORE: 3492 Bonus ------- High Alert Combat Kills 217 Cogmind --------- Core Integrity 184/400 Matter 290/300 Energy 170/265 System Corruption 8% Temperature Warm (120) Movement Walking (190) Ox1 Location -9/Materials Parts ------- > --- POWER (1) -------- Reinforced Ion Engine > --- PROPULSION (2) --- Aluminum Leg Improved Aluminum Leg > --- UTILITY (4) ------ Improved Heat Sink Large Storage Unit Core Shielding Light Armor Plating > --- WEAPON (2) ------- Light EM Pulse Cannon Beam Cannon > --- INVENTORY (15) --- Light Nuclear Core Improved Aluminum Leg Cesium-ion Thruster Cesium-ion Thruster Cesium-ion Thruster Cesium-ion Thruster Datajack Katana Peak State ------------ > --- POWER ------------ Reinforced Ion Engine > --- PROPULSION ------- Cesium-ion Thruster Cesium-ion Thruster > --- UTILITY ---------- Small Storage Unit Light Armor Plating Light Armor Plating Improved Light Armor Plating > --- WEAPON ----------- Beam Rifle Improved Assault Rifle > --- INVENTORY -------- Light Nuclear Core Improved Flight Unit Datajack Katana [Rating: 20] Favorites ----------- Power Ion Engine Engine Ion Engine Propulsion Light Treads Treads Light Treads Leg Aluminum Leg Flight Unit Flight Unit Utility Light Armor Plating Device Seismic Detector Storage Small Storage Unit Processor Targeting Computer Hackware Hacking Suite Protection Light Armor Plating Weapon Improved Light Cannon Energy Gun Beam Rifle Energy Cannon Beam Cannon Ballistic Gun Improved Assault Rifle Ballistic Cannon Improved Light Cannon Slashing Weapon Katana Build | -11 -10 -9 ------- Run | Yrd Mat Mat Slots Evolved 2 | . . 2 Power . | . . . Propulsion . | . . . Utility 2 | . . 2 Weapon . | . . . Parts Attached 69 | 8 22 39 Power 7 | 2 3 2 Engine 7 | 2 3 2 Core . | . . . Reactor . | . . . Propulsion 20 | 2 5 13 Treads 4 | 2 2 . Leg 9 | . . 9 Wheel . | . . . Hover . | . . . Flight 7 | . 3 4 Utility 15 | 2 2 11 Device 2 | 1 . 1 Storage 4 | 1 . 3 Processor 1 | . 1 . Hackware 1 | . 1 . Protection 7 | . . 7 Artifact . | . . . Weapon 27 | 2 12 13 Energy Gun 6 | 1 1 4 Energy Cannon 5 | . 1 4 Ballistic Gun 9 | 1 4 4 Ballistic Cannon 6 | . 6 . Launcher . | . . . Special Weapon . | . . . Impact Weapon . | . . . Slashing Weapon 1 | . . 1 Piercing Weapon . | . . . Special Melee Weapon . | . . . Unidentified Prototypes 3 | . . 3 Parts Lost 14 | . 2 12 Power 1 | . 1 . Propulsion 5 | . 1 4 Utility 6 | . . 6 Weapon 2 | . . 2 Highest Loss Streak 3 | . 1 3 To Critical Strikes . | . . . Average Slot Usage (%) 95 | . 98 92 Engine 12 | . 13 11 Treads 10 | . 23 . Leg 11 | . . 19 Flight 2 | . 3 1 Device 2 | . 2 1 Storage 6 | . 3 8 Processor 5 | . 11 1 Hackware 5 | . 10 1 Protection 14 | . . 24 Energy Gun 5 | . . 9 Energy Cannon 1 | . . 2 Ballistic Gun 6 | . 3 8 Ballistic Cannon 10 | . 24 . Slashing Weapon 1 | . . 1 Peak Build Rating 20 | 7 11 20 Average Rating 12 | 5 10 15 On Entrance 5 | . 7 9 Naked Turns . | . . . Heaviest Build 45 | 14 19 45 Greatest Support 40 | 40 40 23 Greatest Overweight (x) 4 | 2 1 4 Average Overweight (x) . | . . . Largest Inventory Capacity 15 | 8 8 15 Average Capacity 8 | 5 5 10 Most Carried 8 | 1 7 8 Average Carried 4 | . 4 5 Final Capacity 15 | 8 5 15 Final Carried 8 | 1 4 8 Class Distribution -------------------- 53% | Scavenger-Mutant 46% | Mutant Dominant Class ---------------- Mutant | -10/Materials Scavenger-Mutant | -9/Materials Resources | -11 -10 -9 ----------- Run | Yrd Mat Mat Matter Collected 1689 | 288 630 771 Remotely . | . . . Salvage Created 2360 | 136 622 1602 Parts 150 | 11 54 85 Haulers Intercepted 3 | . 2 1 Recyclers Shooed 3 | 1 1 1 Parts Field Recycled . | . . . Retrieved Matter . | . . . Parts Self-Destructed . | . . . Prevented . | . . . Kills | -11 -10 -9 ------- Run | Yrd Mat Mat Combat Hostiles Destroyed 51 | . 21 30 Melee 3 | . . 3 Guns 20 | . . 20 Cannons 26 | . 21 5 AOE 1 | . . 1 Classes Destroyed 13 | 2 6 5 Worker 1 | . . 1 Tunneler 2 | 2 . . Hauler 3 | . 2 1 Recycler 4 | 1 2 1 Mechanic 1 | . 1 . Operator 2 | . 2 . Watcher 6 | . 3 3 Swarmer 7 | . 6 1 Grunt 30 | . 15 15 Brawler 3 | . . 3 Duelist 2 | . . 2 Protector 1 | . . 1 Sentry 8 | . . 8 Best Kill Streak 5 | 2 5 5 Combat Bots Only 5 | . 5 5 Max Kills in Single Turn 2 | 1 2 2 Gunslinging . | . . . Exploded 1 | . . 1 Melee 1 | . . 1 Uniques/NPCs Destroyed . | . . . Combat | -11 -10 -9 -------- Run | Yrd Mat Mat Hostile Shots Fired 315 | . 134 181 Missed 94 | . 41 53 Damage Taken 2861 | . 1027 1834 Core 394 | . 178 216 Absorbed by Shields . | . . . Redirected to Shielding 8 | . . 8 Regen/Repaired (Parts) 127 | . 127 . Core Remaining (%) 64 | 100 28 . Volleys Fired 195 | 8 77 110 Largest 2 | 2 2 2 Hottest 116 | 60 78 116 Shots Fired 376 | 16 154 206 Gun 203 | 16 12 175 Cannon 173 | . 142 31 Launcher . | . . . Special . | . . . Kinetic 262 | 8 154 100 Thermal 91 | . . 91 Explosive . | . . . Electromagnetic 23 | 8 . 15 Robot Hit Streak 29 | 9 10 29 Robot Miss Streak 6 | 1 6 4 Penetration Max . | . . . Secondary Targets 2 | . . 2 Max Gunslinging Chain 1 | . . 1 Shots Hit Robots 243 | 13 81 149 Core Hits 101 | 4 34 63 Critical Kills . | . . . Critical Parts Destroyed . | . . . Critical Strikes 12 | . 4 8 Burn 6 | . . 6 Blast 4 | . 4 . Corrupt 1 | . . 1 Sever 1 | . . 1 Melee Attacks 9 | . . 9 Impact . | . . . Slashing 9 | . . 9 Piercing . | . . . Sneak Attacks . | . . . Combat Hostiles . | . . . Follow-up Attacks . | . . . Damage Inflicted 4435 | 136 1761 2538 Guns 1946 | 136 32 1778 Cannons 2043 | . 1718 325 Explosions 229 | . . 229 Melee 206 | . . 206 Ramming 11 | . 11 . Kinetic 2708 | 57 1750 901 Thermal 957 | . . 957 Explosive 229 | . . 229 Electromagnetic 324 | 79 . 245 Impact . | . . . Slashing 206 | . . 206 Piercing . | . . . Highest Corruption 8 | . 1 8 Average Corruption 5 | . 1 7 Corruption Purged . | . . . Corruption Blocked . | . . . Effects 48 | . 5 43 Message Errors 12 | . 4 8 Matter Fused 11 | . . 11 Heat Flow Errors 3 | . . 3 Energy Discharges 7 | . . 7 Parts Fused 1 | . . 1 Data Loss (minor) 9 | . 1 8 Data Loss (major) 1 | . . 1 Alerts 1 | . . 1 Weapon Failures 3 | . . 3 Overload Shots . | . . . Overflow Damage 48 | . 9 39 Projectiles 9 | . 9 . Explosions 39 | . . 39 Melee . | . . . Knockbacks 16 | . 16 . Impact . | . . . Kinetic 14 | . 14 . Secondary 2 | . 2 . Self-Inflicted Damage 131 | . . 131 Shots 2 | . . 2 Rammed 3 | . 3 . Targets Rammed 3 | . 3 . Kicked . | . . . Crushed . | . . . Highest Temperature 383 | 40 233 383 Average Temperature 96 | 16 56 120 Received Heat Transfer 1065 | . 447 618 Effects 5 | . . 5 Shutdowns 1 | . . 1 Interference 4 | . . 4 Siege Activations . | . . . Robots Corrupted . | . . . Combat Hostiles . | . . . Parts Fried 1 | 1 . . Impact Corruptions . | . . . Robots Melted 1 | . . 1 Combat Hostiles 1 | . . 1 Parts Melted 11 | . . 11 Heat Transferred 2719 | . . 2719 Parts Sabotaged . | . . . Parts Stolen . | . . . Parts Stripped . | . . . Power Chain Reactions . | . . . Alert | -11 -10 -9 ------- Run | Yrd Mat Mat Peak Influence 661 | 15 376 661 Initial 158 | . 9 158 Average 332 | 10 158 494 Maximum Alert Level 2 | . 1 2 Low Security (%) 36 | 100 73 2 Level 1 15 | . 26 9 Level 2 48 | . . 88 Level 3 . | . . . Level 4 . | . . . Level 5 . | . . . High Security . | . . . Max Security . | . . . Squads Dispatched 9 | . 5 4 Investigation 3 | . 2 1 Extermination . | . . . Reinforcement 5 | . 3 2 Assault 1 | . . 1 Garrison . | . . . Intercept . | . . . Searches Triggered . | . . . Construction Impeded . | . . . Haulers Reinforced . | . . . Active Scanning Responses . | . . . Cargo Convoy Interrupts . | . . . Stealth | -11 -10 -9 --------- Run | Yrd Mat Mat Distress Signals 4 | . 2 2 Communications Jammed . | . . . Distress Signals . | . . . Times Spotted 85 | . 36 49 Peak Tracking Total 6 | . 5 6 Tactical Retreats 4 | . . 4 Traps | -11 -10 -9 ------- Run | Yrd Mat Mat Traps Triggered 2 | . 2 . Indirectly . | . . . Trap Hack Attempts . | . . . Triggered . | . . . Disarmed . | . . . Reprogrammed 4 | . 4 . Reused . | . . . Traps Extracted . | . . . Installed . | . . . Triggered . | . . . Machines | -11 -10 -9 ---------- Run | Yrd Mat Mat Machines Disabled 6 | . 3 3 Max in Single Turn 2 | . 1 2 Machines Repaired . | . . . Machines Dismantled . | . . . Machines Sabotaged . | . . . Overloaded Fab Kills . | . . . Hacking | -11 -10 -9 --------- Run | Yrd Mat Mat Machines Accessed 12 | . 6 6 Terminals 7 | . 4 3 Fabricators . | . . . Repair Stations 3 | . 1 2 Recycling Units 2 | . 1 1 Scanalyzers . | . . . Garrison Access . | . . . Total Hacks 36 | . 19 17 Successful 18 | . 13 5 Failed 18 | . 6 12 Catastrophic 2 | . 1 1 Database Lockouts . | . . . Manual 6 | . . 6 Terminals 19 | . 10 9 Fabricators . | . . . Repair Stations 9 | . 3 6 Recycling Units 8 | . 6 2 Scanalyzers . | . . . Garrison Access . | . . . Terminal Hacks 5 | . 4 1 Terminal Index 1 | . . 1 Locate Traps 1 | . 1 . Reprogram Traps 1 | . 1 . Hauler Manifests 1 | . 1 . Zone Layout 1 | . 1 . Fabricator Hacks . | . . . Repair Station Hacks 5 | . 3 2 Scan Component 3 | . 1 2 Repair 1 | . 1 . Refit 1 | . 1 . Recycling Unit Hacks 8 | . 6 2 Recycle Component 2 | . 2 . Process 1 | . 1 . Report Inventory 2 | . 1 1 Retrieve Matter 1 | . 1 . Retrieve Components 2 | . 1 1 Scanalyzer . | . . . Garrison Access Hacks . | . . . Unauthorized Hacks . | . . . Terminals . | . . . Fabricators . | . . . Repair Stations . | . . . Recycling Units . | . . . Scanalyzers . | . . . Garrison Access . | . . . Data Cores Recovered . | . . . Used . | . . . Hacking Detections 11 | . 5 6 Full Trace Events 6 | . 3 3 Feedback Events . | . . . Feedback Blocked . | . . . Robot Schematics Acquired . | . . . Robots Built . | . . . Authchips . | . . . Time . | . . . Total Robot Build Rating . | . . . Part Schematics Acquired . | . . . Parts Built . | . . . Authchips . | . . . Time . | . . . Total Part Build Rating . | . . . Parts Repaired 1 | . 1 . Time 26 | . 26 . Parts Recycled 2 | . 2 . Recycled Matter 41 | . 41 . Retrieved Matter 41 | . 41 . Retrieved Components 17 | . 8 9 Parts Scanalyzed . | . . . Part Schematics Acquired . | . . . Parts Damaged . | . . . Bothacking | -11 -10 -9 ------------ Run | Yrd Mat Mat Used RIF Installer . | . . . Robots Hacked . | . . . Non-combat . | . . . Combat . | . . . Robot Hacks Applied . | . . . Relay Couplers Released . | . . . Fabnet Peak Effective % . | . . . Robots Rewired . | . . . Allies Hacked . | . . . Hacks Repelled . | . . . Allies | -11 -10 -9 -------- Run | Yrd Mat Mat Total Allies . | . . . Largest Group . | . . . Highest-Rated Group . | . . . Highest-Rated Ally . | . . . Total Orders . | . . . Ally Attacks . | . . . Total Damage . | . . . Kills . | . . . Allies Corrupted . | . . . Allies Melted . | . . . Intel | -11 -10 -9 ------- Run | Yrd Mat Mat Robot Analysis Total . | . . . Derelict Logs Recovered . | . . . Drone Launches . | . . . Drone Recoveries . | . . . Exploration | -11 -10 -9 ------------- Run | Yrd Mat Mat Turns Passed 2950 | 183 1161 1606 Spaces Moved 1554 | 97 732 725 Core 13 | 9 . 4 Treads 559 | 88 471 . Legs 612 | . . 612 Wheels . | . . . Hover . | . . . Flight 370 | . 261 109 Fastest Speed 37 | 50 37 37 Average Speed 138 | 152 116 159 Slowest Speed 280 | 160 160 280 Overloaded Moves . | . . . Propulsion Burnouts . | . . . Robots Hopped 4 | . 4 . Cave-ins Triggered . | . . . Exploration Rate (%) 49 | 5 95 48 Regions Visited 2 Branch Regions . Pre-discovered Areas . | . . . Known Exits Taken . | . . . Unknown Exits Taken 2 | 1 1 . Scrap Searched . | . . . Spaces Dug . | . . . Terrain Destroyed 48 | . 9 39 Melee . | . . . Projectile 9 | . 9 . AOE 39 | . . 39 Terrain Rammed . | . . . Walls Destroyed . | . . . Machines Disabled . | . . . Actions | -11 -10 -9 --------- Run | Yrd Mat Mat Total 1946 | 114 878 954 Wait 74 | . 32 42 Move 1545 | 96 724 725 Hop 3 | . 3 . Pick Up 13 | 1 4 8 Fast Attach 41 | 7 11 23 Attach 6 | . 1 5 Detach 6 | . 3 3 Swap 22 | 1 10 11 Drop 29 | 1 10 18 Fire 195 | 8 77 110 Melee 9 | . . 9 Ram . | . . . Kick . | . . . Crush 3 | . 3 . Escape Stasis . | . . . Rewire . | . . . Trap . | . . . Miscellaneous . | . . . Route ------- -11/Scrapyard -10/Materials (discovered 4 exits: *Mat x3 / [*Min]) -9/Materials (discovered 2 exits: [*Mat] / [*Min]) History --------- Turn | Location | Event 2 | -11/Scrapyard | Discovered new exit (range 16) 184 | -11/Scrapyard | Entered Materials 312 | -10/Materials | Build established: Mutant 607 | -10/Materials | Discovered new exit (range 16) 686 | -10/Materials | Core integrity fell below 50% 988 | -10/Materials | Discovered new exit (range 14) 1100 | -10/Materials | Repaired Lgt. Treads 1143 | -10/Materials | Discovered new exit (range 14) 1234 | -10/Materials | Discovered new exit (range 15) 1345 | -10/Materials | Entered another Materials area 1345 | -9/Materials | Evolved 2 slots: Utility x2 1514 | -9/Materials | Build established: Scavenger-Mutant 1635 | -9/Materials | Lost 3 parts (1n2u) 1954 | -9/Materials | Discovered new exit (range 16) 2155 | -9/Materials | Discovered new exit (range 8) 2545 | -9/Materials | First assault squad dispatched 2941 | -9/Materials | Core integrity fell below 50% 2951 | -9/Materials | Self-destructed Last Messages --------------- 02853_ G-34 Mercenary overheating. 02854_ G-34 Mercenary heat damages Aluminum Leg. 02854_ G-34 Mercenary overheating. 02855_ G-34 Mercenary heat damages core (-5). 02855_ G-34 Mercenary overheating. 02860_ Aluminum Leg melted. 02860_ G-34 Mercenary destroyed. 02861_ System corrupted: Component data lost. 02886_ System corrupted: Beam Cannon failed to cycle. 02889_ G-34 Mercenary destroyed. 02912_ T FT2SVKZMQ2FX <,TKW 02917_ Dropped Beam Rifle. 02917_ Acquired Lgt. EM Pulse Cannon. 02923_ Connecting with Terminal... 02936_ C-30 ARC bursts open, deploying its payload. 02936_ S-10 Pest unfolds itself. 02939_ S-10 Pest destroyed. 02942_ Critical hit (Destroy). 02943_ R-06 Scavenger destroyed. 02946_ System corrupted: IFF burst signal emitted. Map ----- +----------------------------------------------------+ | ?????????????????????????????????????????????????? | | ?????????????????????????????????????????????????? | | ?????????????????????????????????????????????????? | | ?????????????????????????????????????????????????? | | ?????????????????????????????????????????????????? | | ?????????????????????????????????????????????????? | | ?????????????????????????????????????????????????? | | ?????????????????????????????????????????????????? | | ?????????????????????????????????????????????????? | | ?????????????????????????????????????????????????? | | ?????????????????????????????????????????????????? | | ?????????????????????????????????????????????????? | | ?????????????????????????????????????????????????? | | ?????????????????????????????????????????????????? | | ?????????????????????????????????????????????????# | | ?????????????????????????????????????????????????# | | ????????????????????????????????????########?????# | | ????????????????????????????????????? #?????# | | ????????????????????????????????????? """ #?????# | | ?????????????????????????????######???""" ??????# | | ????????????????????????????##!!!!##??""" ####### | | ???????????# ????????#######! !#??? ?# # | | ??????????# ####### # #??? ?# # | | ??????????# s % #!== #####+### """ # | | ??????????# =%[ s !%% r %% %+*""" # | | ??????????# * @ ################/""" # | | ??????????# ####### #??????????????# # | | ???????????#????????#####+#####????????????# # | | ????????????????????# """ #????????????##+#### | | ????????????????????# "T" #?????????????# #??? | | ????????????????????# " " #?????????????# #### | | ????????????????????# """ #?????????????# | | ????????????????????# [ """ #??????????#### | | ?????? ?????????????# """ #??????????# | | ?????? ?????????????# #??????????# | | ?????# ?????????????# #??????????# ### | | ?????# ########?????###########????##########??# | | ?????# # #???????# #?????# #??# | | ?????# # #???????# T #?????# """"" #??### | | ?????# # !!! #???????# [ #?????# """"" #????? | | ?????# # !!! #???????# ####### """"" #????? | | ?????# # !! #???????# ## [[## """"" #????? | | ?????# # ######### ## [[## """"" ###### | | ###### #####/## ##+###### ## """"" + | | #### = ## """"" ###### | | ! = < ]]## #????? | | #### ]]######+#####???? | | ##### ####### ## #??######### #???? | | ##### # # "!"!" ## #??# ! # % #???? | | = T + + """ #""! !""## #??# !! =+ ##+##### | +----------------------------------------------------+ Best States ------------- Heat Dissipation 42 Energy Generation 12 Energy Capacity 265 Matter Stores 300 Matter Capacity 300 Sight Range 16 Terrain Scan Density 10 Armor Coverage 450 Core Shielding 20 Evasion (%) 62 Targeting Accuracy 5 Recoil Reduction 2 Offensive Hacking 10 Item Schematics ----------------- None Robot Schematics ------------------ None Fabricated ------------ Nothing Alien Tech Used ----------------- None Achievements -------------- None Challenges ------------ None Game ------ Seed VoltaicLightpackCharger Manual? 0 Play Time 00:50:12 Cumulative 15.6 hours Start 2024.08.07 @ 12:58:22 End 2024.08.07 @ 17:33:10 Sessions 3 Manual Loads 0 Difficulty Rogue Special Mode None Game No. 37 Rogue 37 Adventurer 0 Explorer 0 Win Type - Total 0 Types 0/0/0/0/0/0/0/0/0 Lore% 9 Gallery% 18 Achievement% 25 Wizard Run 0 Options --------- Layout 0 ASCII 0 Keyboard 0 Movement Mouse Keybinds 0 Fullscreen 1 Font 36/Smallcaps Map View 76x50 Zoom Use 0% Tactical HUD 1 Map Filters NONE Filters NONE Steam 1 RUN: c7c42e15-74d8-4b6c-92d0-03d1d67ef0da